[Event "*** Titled Tuesday Blitz"]
[Site "Chess.com"]
[Date "2021.03.02"]
[Round "1"]
[White "Artem_Koval"]
[Black "AttilaTurzo"]
[Result "0-1"]
[WhiteElo "2221"]
[BlackElo "2541"]
[TimeControl "180+1"]
[EndTime "10:08:04 PST"]
[Termination "AttilaTurzo won by checkmate"]

1. d4 {[%clk 0:02:59.5]} 1... d5 {[%clk 0:02:59.6]} 2. Bf4 {[%clk 0:02:59.8]}
2... c6 {[%clk 0:03:00.5]} 3. e3 {[%clk 0:03:00.1]} 3... Qb6 {[%clk 0:02:57.8]}
4. Qc1 {[%clk 0:02:59.1]} 4... Bf5 {[%clk 0:02:55.7]} 5. c4 {[%clk 0:02:58.5]}
5... e6 {[%clk 0:02:55.8]} 6. Nc3 {[%clk 0:02:57.6]} 6... Nf6 {[%clk 0:02:53.7]}
7. Nf3 {[%clk 0:02:57.9]} 7... Nbd7 {[%clk 0:02:52.8]} 8. c5 {[%clk 0:02:55.6]}
8... Qd8 {[%clk 0:02:45.7]} 9. b4 {[%clk 0:02:53.9]} 9... Be7 {[%clk 0:02:41.4]}
10. a4 {[%clk 0:02:53]} 10... Nh5 {[%clk 0:02:37.2]} 11. Bg3 {[%clk 0:02:50.1]}
11... O-O {[%clk 0:02:35.2]} 12. b5 {[%clk 0:02:49.2]} 12... Nxg3 {[%clk
0:02:33.9]} 13. hxg3 {[%clk 0:02:48.7]} 13... e5 {[%clk 0:02:34.2]} 14. Be2
{[%clk 0:02:44.7]} 14... Bf6 {[%clk 0:02:28.3]} 15. O-O {[%clk 0:02:40.2]} 15...
Re8 {[%clk 0:02:27.1]} 16. a5 {[%clk 0:02:32.2]} 16... exd4 {[%clk 0:02:11.2]}
17. exd4 {[%clk 0:02:30.7]} 17... cxb5 {[%clk 0:02:02.5]} 18. Bxb5 {[%clk
0:02:22.4]} 18... Be4 {[%clk 0:01:57.5]} 19. Qd2 {[%clk 0:01:59.7]} 19... a6
{[%clk 0:01:50.9]} 20. Ba4 {[%clk 0:01:49.7]} 20... Re7 {[%clk 0:01:50.7]} 21.
Rfe1 {[%clk 0:01:35.7]} 21... Nf8 {[%clk 0:01:47.2]} 22. Bb3 {[%clk 0:01:12.6]}
22... Ne6 {[%clk 0:01:46.5]} 23. Nxe4 {[%clk 0:01:04.9]} 23... dxe4 {[%clk
0:01:44.6]} 24. Rxe4 {[%clk 0:01:05.4]} 24... Nxc5 {[%clk 0:01:39]} 25. Rxe7
{[%clk 0:00:25]} 25... Nxb3 {[%clk 0:01:33.9]} 26. Qa2 {[%clk 0:00:23.6]} 26...
Nxa1 {[%clk 0:01:15.4]} 27. Qxf7+ {[%clk 0:00:23.3]} 27... Kh8 {[%clk
0:01:14.8]} 28. Rxb7 {[%clk 0:00:23.9]} 28... Nc2 {[%clk 0:01:06.1]} 29. d5
{[%clk 0:00:23.1]} 29... Nd4 {[%clk 0:01:01.3]} 30. Ng5 {[%clk 0:00:21]} 30...
Nf5 {[%clk 0:00:54.5]} 31. Ne4 {[%clk 0:00:17.8]} 31... Nd6 {[%clk 0:00:49.6]}
32. Nxd6 {[%clk 0:00:18.4]} 32... Qxd6 {[%clk 0:00:50.5]} 33. Rb6 {[%clk
0:00:18.3]} 33... Qe7 {[%clk 0:00:47.9]} 34. Qh5 {[%clk 0:00:16.4]} 34... Kg8
{[%clk 0:00:42.6]} 35. Qd1 {[%clk 0:00:12.6]} 35... Re8 {[%clk 0:00:40.9]} 36.
d6 {[%clk 0:00:11.6]} 36... Qe1+ {[%clk 0:00:39.7]} 37. Qxe1 {[%clk 0:00:12.2]}
37... Rxe1+ {[%clk 0:00:40.6]} 38. Kh2 {[%clk 0:00:12.7]} 38... Kf7 {[%clk
0:00:38.9]} 39. Rxa6 {[%clk 0:00:13.2]} 39... Rd1 {[%clk 0:00:38.9]} 40. Ra7+
{[%clk 0:00:13.5]} 40... Ke6 {[%clk 0:00:38.8]} 41. a6 {[%clk 0:00:13.9]} 41...
Rxd6 {[%clk 0:00:38]} 42. Ra8 {[%clk 0:00:14.4]} 42... Be7 {[%clk 0:00:28.3]}
43. a7 {[%clk 0:00:11.8]} 43... Ra6 {[%clk 0:00:27.9]} 44. Rh8 {[%clk
0:00:12.2]} 44... Rxa7 {[%clk 0:00:27.4]} 45. Rxh7 {[%clk 0:00:12.7]} 45... Bf6
{[%clk 0:00:27.8]} 46. Rh5 {[%clk 0:00:13.1]} 46... Kf7 {[%clk 0:00:27.8]} 47.
Rh3 {[%clk 0:00:12.6]} 47... Kg6 {[%clk 0:00:28.1]} 48. g4 {[%clk 0:00:13.5]}
48... Ra4 {[%clk 0:00:27.8]} 49. g3 {[%clk 0:00:13.6]} 49... Ra2 {[%clk
0:00:26.8]} 50. Kg2 {[%clk 0:00:14.5]} 50... Bd4 {[%clk 0:00:27.1]} 51. Rh1
{[%clk 0:00:11.2]} 51... Rxf2+ {[%clk 0:00:28]} 52. Kh3 {[%clk 0:00:11.7]} 52...
Bf6 {[%clk 0:00:27.4]} 53. Rd1 {[%clk 0:00:11.9]} 53... Be5 {[%clk 0:00:27.1]}
54. Rd5 {[%clk 0:00:12.1]} 54... Re2 {[%clk 0:00:27.3]} 55. Rd1 {[%clk 0:00:11]}
55... Re3 {[%clk 0:00:27.2]} 56. Rg1 {[%clk 0:00:10.9]} 56... Kg5 {[%clk
0:00:27.3]} 57. Rg2 {[%clk 0:00:11.1]} 57... g6 {[%clk 0:00:27.4]} 58. Rg1
{[%clk 0:00:11.4]} 58... Bd6 {[%clk 0:00:27.2]} 59. Rg2 {[%clk 0:00:11.8]} 59...
Re1 {[%clk 0:00:27.4]} 60. Rh2 {[%clk 0:00:07.2]} 60... Re8 {[%clk 0:00:24.2]}
61. Rg2 {[%clk 0:00:07]} 61... Rh8# {[%clk 0:00:24.1]} 0-1

[Event "*** Titled Tuesday Blitz"]
[Site "Chess.com"]
[Date "2021.03.02"]
[Round "1"]
[White "AttackSparrow"]
[Black "kamilianin235"]
[Result "1-0"]
[WhiteElo "2530"]
[BlackElo "2203"]
[TimeControl "180+1"]
[EndTime "10:08:09 PST"]
[Termination "AttackSparrow won by resignation"]

1. e4 {[%clk 0:03:00.9]} 1... c5 {[%clk 0:02:57.1]} 2. c3 {[%clk 0:03:00.2]}
2... d6 {[%clk 0:02:53.5]} 3. d4 {[%clk 0:03:00.1]} 3... Nf6 {[%clk 0:02:53.1]}
4. Bd3 {[%clk 0:02:59.4]} 4... g6 {[%clk 0:02:52.2]} 5. dxc5 {[%clk 0:02:58.8]}
5... dxc5 {[%clk 0:02:50.9]} 6. e5 {[%clk 0:02:59]} 6... Nh5 {[%clk 0:02:50]} 7.
Nf3 {[%clk 0:02:53.9]} 7... Nc6 {[%clk 0:02:46.9]} 8. O-O {[%clk 0:02:51.6]}
8... Bg4 {[%clk 0:02:44.3]} 9. h3 {[%clk 0:02:48.9]} 9... Bxf3 {[%clk
0:02:18.7]} 10. Qxf3 {[%clk 0:02:49.8]} 10... Bg7 {[%clk 0:02:17.7]} 11. g4
{[%clk 0:02:33.8]} 11... O-O {[%clk 0:02:15.2]} 12. Re1 {[%clk 0:02:25.8]} 12...
Nxe5 {[%clk 0:02:08.8]} 13. Rxe5 {[%clk 0:02:25.6]} 13... Bxe5 {[%clk
0:02:09.2]} 14. gxh5 {[%clk 0:02:25.9]} 14... Qd7 {[%clk 0:01:55.9]} 15. Na3
{[%clk 0:01:58.9]} 15... Rad8 {[%clk 0:01:53.2]} 16. Bc2 {[%clk 0:01:55.4]}
16... b5 {[%clk 0:01:47]} 17. Bh6 {[%clk 0:01:52.6]} 17... Bg7 {[%clk
0:01:40.2]} 18. Bxg7 {[%clk 0:01:51.8]} 18... Kxg7 {[%clk 0:01:41.1]} 19. Rd1
{[%clk 0:01:51]} 19... Qe6 {[%clk 0:01:33.7]} 20. Rxd8 {[%clk 0:01:30.2]} 20...
Rxd8 {[%clk 0:01:32.1]} 21. Nxb5 {[%clk 0:01:30.1]} 21... Qxa2 {[%clk
0:01:27.1]} 22. Qe3 {[%clk 0:01:09.5]} 22... Qxb2 {[%clk 0:01:25.8]} 23. h6+
{[%clk 0:01:08.9]} 23... Kg8 {[%clk 0:01:21.1]} 24. Qxe7 {[%clk 0:01:03]} 24...
Rf8 {[%clk 0:01:10]} 25. Qf6 {[%clk 0:01:00.5]} 25... Qc1+ {[%clk 0:01:08.8]}
26. Kg2 {[%clk 0:01:00.1]} 26... Qxh6 {[%clk 0:01:09.7]} 27. Bb3 {[%clk
0:00:56.5]} 27... Qg7 {[%clk 0:00:58]} 28. Qe7 {[%clk 0:00:51.8]} 28... a6
{[%clk 0:00:43.4]} 29. Nd6 {[%clk 0:00:51.4]} 29... a5 {[%clk 0:00:38.2]} 30.
Nxf7 {[%clk 0:00:38]} 30... a4 {[%clk 0:00:24.2]} 31. Bc4 {[%clk 0:00:24]} 31...
Rxf7 {[%clk 0:00:22.9]} 32. Qe8+ {[%clk 0:00:23.2]} 32... Qf8 {[%clk 0:00:22.8]}
33. Bxf7+ {[%clk 0:00:23]} 33... Kg7 {[%clk 0:00:23.2]} 34. Qxf8+ {[%clk
0:00:23.1]} 34... Kxf8 {[%clk 0:00:23.7]} 35. Bc4 {[%clk 0:00:22.9]} 35... Ke7
{[%clk 0:00:23.9]} 36. Kf3 {[%clk 0:00:23.3]} 36... Kd6 {[%clk 0:00:24.2]} 37.
Ke4 {[%clk 0:00:23.7]} 37... h6 {[%clk 0:00:23.9]} 38. h4 {[%clk 0:00:21.5]}
38... g5 {[%clk 0:00:23.2]} 39. h5 {[%clk 0:00:20.5]} 39... Kc6 {[%clk
0:00:19.1]} 40. Ke5 {[%clk 0:00:20.5]} 40... Kb6 {[%clk 0:00:18.8]} 41. Kd6
{[%clk 0:00:20.9]} 41... Ka5 {[%clk 0:00:16.2]} 42. Kxc5 {[%clk 0:00:20.3]}
42... g4 {[%clk 0:00:16.1]} 43. Ba2 {[%clk 0:00:19.4]} 43... a3 {[%clk
0:00:12.7]} 44. Kc4 {[%clk 0:00:19.3]} 44... Ka4 {[%clk 0:00:12.6]} 45. Kd3
{[%clk 0:00:18.6]} 45... Kb5 {[%clk 0:00:10.1]} 46. c4+ {[%clk 0:00:17]} 46...
Kb4 {[%clk 0:00:09.6]} 47. Kd4 {[%clk 0:00:17.9]} 47... Ka4 {[%clk 0:00:08.9]}
48. Kc3 {[%clk 0:00:17.8]} 48... Ka5 {[%clk 0:00:06.9]} 49. Kb3 {[%clk
0:00:18.7]} 49... Kb6 {[%clk 0:00:06.1]} 50. Kxa3 {[%clk 0:00:18.7]} 50... Kc5
{[%clk 0:00:03.8]} 51. Kb3 {[%clk 0:00:17.5]} 51... Kd4 {[%clk 0:00:03.1]} 52.
Kb4 {[%clk 0:00:17.3]} 52... Ke5 {[%clk 0:00:03.7]} 53. c5 {[%clk 0:00:17.2]}
53... Kf4 {[%clk 0:00:04.6]} 54. c6 {[%clk 0:00:17]} 54... Kf3 {[%clk
0:00:05.3]} 55. Be6 {[%clk 0:00:17.3]} 55... Kxf2 {[%clk 0:00:06.2]} 56. Bxg4
{[%clk 0:00:17.4]} 56... Kg3 {[%clk 0:00:06.2]} 57. Bd1 {[%clk 0:00:17.5]} 57...
Kh4 {[%clk 0:00:05.4]} 58. c7 {[%clk 0:00:18.4]} 58... Kg5 {[%clk 0:00:06.3]}
59. c8=Q {[%clk 0:00:18.4]} 1-0

[Event "*** Titled Tuesday Blitz"]
[Site "Chess.com"]
[Date "2021.03.02"]
[Round "1"]
[White "catzapto"]
[Black "FontVella8"]
[Result "1/2-1/2"]
[WhiteElo "2057"]
[BlackElo "2490"]
[TimeControl "180+1"]
[EndTime "10:08:11 PST"]
[Termination "Game drawn by repetition"]

1. e4 {[%clk 0:03:00]} 1... e6 {[%clk 0:03:00]} 2. d4 {[%clk 0:02:59.4]} 2... d5
{[%clk 0:03:00.5]} 3. Nd2 {[%clk 0:03:00]} 3... Nf6 {[%clk 0:03:00.2]} 4. e5
{[%clk 0:03:00.3]} 4... Nfd7 {[%clk 0:03:00.7]} 5. Bd3 {[%clk 0:03:01]} 5... c5
{[%clk 0:03:01.1]} 6. c3 {[%clk 0:03:01.8]} 6... Nc6 {[%clk 0:03:01.6]} 7. Ne2
{[%clk 0:03:02.2]} 7... Qb6 {[%clk 0:03:02.5]} 8. Nf3 {[%clk 0:03:02.8]} 8...
cxd4 {[%clk 0:03:01.9]} 9. cxd4 {[%clk 0:03:02.9]} 9... Bb4+ {[%clk 0:03:02.5]}
10. Bd2 {[%clk 0:03:03.3]} 10... O-O {[%clk 0:03:01.8]} 11. O-O {[%clk
0:03:03.4]} 11... f6 {[%clk 0:03:02.2]} 12. Bxb4 {[%clk 0:02:46.2]} 12... Qxb4
{[%clk 0:03:00.4]} 13. Nf4 {[%clk 0:02:42.4]} 13... fxe5 {[%clk 0:02:59.5]} 14.
Nxe6 {[%clk 0:02:41.7]} 14... e4 {[%clk 0:02:59.6]} 15. Nxf8 {[%clk 0:02:40.8]}
15... Nxf8 {[%clk 0:03:00.2]} 16. Ng5 {[%clk 0:02:34.9]} 16... exd3 {[%clk
0:02:57.9]} 17. Qf3 {[%clk 0:02:30.5]} 17... Qe7 {[%clk 0:02:51.1]} 18. Qxd5+
{[%clk 0:02:29.8]} 18... Be6 {[%clk 0:02:48.6]} 19. Nxe6 {[%clk 0:02:30]} 19...
Qxe6 {[%clk 0:02:48.7]} 20. Qxe6+ {[%clk 0:02:30]} 20... Nxe6 {[%clk 0:02:48.3]}
21. d5 {[%clk 0:02:30.9]} 21... Nf4 {[%clk 0:02:44.3]} 22. dxc6 {[%clk
0:02:30.3]} 22... bxc6 {[%clk 0:02:44.9]} 23. Rfd1 {[%clk 0:02:25.7]} 23... Rd8
{[%clk 0:02:43.4]} 24. Kf1 {[%clk 0:02:24.4]} 24... c5 {[%clk 0:02:43]} 25. Rac1
{[%clk 0:02:24.5]} 25... Rd5 {[%clk 0:02:39]} 26. Rc4 {[%clk 0:02:16.5]} 26...
Ne2 {[%clk 0:02:27.8]} 27. Rxd3 {[%clk 0:02:12.8]} 27... Rxd3 {[%clk 0:02:26.4]}
28. Kxe2 {[%clk 0:02:12.9]} 28... Rd5 {[%clk 0:02:26.6]} 29. Ra4 {[%clk
0:02:10.8]} 29... Rd7 {[%clk 0:02:25.8]} 30. Ra5 {[%clk 0:02:08.2]} 30... Rc7
{[%clk 0:02:25.2]} 31. Kd3 {[%clk 0:02:08]} 31... Kf7 {[%clk 0:02:25.8]} 32. Kc4
{[%clk 0:02:07.7]} 32... Re7 {[%clk 0:02:24.5]} 33. Kd3 {[%clk 0:02:00.5]} 33...
Rc7 {[%clk 0:02:23.4]} 34. Kc4 {[%clk 0:01:59.9]} 34... Re7 {[%clk 0:02:22.7]}
35. Rxc5 {[%clk 0:01:55.7]} 35... Re2 {[%clk 0:02:21.8]} 36. Rc7+ {[%clk
0:01:55.1]} 36... Kg6 {[%clk 0:02:21.7]} 37. Kc3 {[%clk 0:01:52.4]} 37... Rxf2
{[%clk 0:02:21.3]} 38. Rxa7 {[%clk 0:01:51.9]} 38... Rxg2 {[%clk 0:02:21.6]} 39.
b4 {[%clk 0:01:51.2]} 39... Rxh2 {[%clk 0:02:22]} 40. b5 {[%clk 0:01:50.8]}
40... Rh1 {[%clk 0:02:20.1]} 41. a4 {[%clk 0:01:45.6]} 41... Rb1 {[%clk
0:02:19.3]} 42. Ra6+ {[%clk 0:01:45.9]} 42... Kg5 {[%clk 0:02:17.9]} 43. b6
{[%clk 0:01:46.4]} 43... h5 {[%clk 0:02:16.9]} 44. a5 {[%clk 0:01:46.5]} 44...
h4 {[%clk 0:02:16.3]} 45. Ra7 {[%clk 0:01:45.6]} 45... Kg6 {[%clk 0:02:14.4]}
46. Ra8 {[%clk 0:01:41.6]} 46... Kh7 {[%clk 0:02:12.4]} 47. Kc2 {[%clk
0:01:31.8]} 47... Rb5 {[%clk 0:02:11.3]} 48. Ra7 {[%clk 0:01:30]} 48... h3
{[%clk 0:02:08.5]} 49. Rf7 {[%clk 0:01:26.5]} 49... Rxa5 {[%clk 0:01:57]} 50.
Rf3 {[%clk 0:01:24.4]} 50... h2 {[%clk 0:01:54.5]} 51. Rh3+ {[%clk 0:01:22.2]}
51... Kg8 {[%clk 0:01:53.3]} 52. Rxh2 {[%clk 0:01:15.8]} 52... Ra2+ {[%clk
0:01:52.9]} 53. Kb1 {[%clk 0:01:07.5]} 53... Rxh2 {[%clk 0:01:48.1]} 54. b7
{[%clk 0:01:07]} 54... Rh1+ {[%clk 0:01:49]} 55. Kb2 {[%clk 0:01:05.3]} 55...
Rh2+ {[%clk 0:01:49.5]} 56. Ka3 {[%clk 0:01:03.8]} 56... Rh3+ {[%clk 0:01:49.9]}
57. Ka4 {[%clk 0:01:03.5]} 57... Rh4+ {[%clk 0:01:49.8]} 58. Ka3 {[%clk
0:00:57.6]} 58... Rh3+ {[%clk 0:01:48.3]} 59. Kb2 {[%clk 0:00:56.2]} 59... Rh2+
{[%clk 0:01:48.2]} 60. Kc3 {[%clk 0:00:56.5]} 60... Rh3+ {[%clk 0:01:47.9]} 61.
Kc4 {[%clk 0:00:56.8]} 61... Rh4+ {[%clk 0:01:47.9]} 62. Kc5 {[%clk 0:00:57.2]}
62... Rh5+ {[%clk 0:01:47.7]} 63. Kc6 {[%clk 0:00:57.6]} 63... Rh6+ {[%clk
0:01:46.3]} 64. Kc7 {[%clk 0:00:57.7]} 64... Rf6 {[%clk 0:01:46.1]} 65. b8=Q+
{[%clk 0:00:57.5]} 65... Kh7 {[%clk 0:01:46.7]} 66. Qb1+ {[%clk 0:00:57]} 66...
Kg8 {[%clk 0:01:46.5]} 67. Kd7 {[%clk 0:00:56.8]} 67... Kf7 {[%clk 0:01:44.5]}
68. Qb3+ {[%clk 0:00:55.7]} 68... Kf8 {[%clk 0:01:43.7]} 69. Qg3 {[%clk
0:00:50]} 69... Kf7 {[%clk 0:01:42.9]} 70. Qg5 {[%clk 0:00:47]} 70... Kg8 {[%clk
0:01:41.2]} 71. Qh5 {[%clk 0:00:44.4]} 71... Rh6 {[%clk 0:01:33.9]} 72. Qe8+
{[%clk 0:00:42.2]} 72... Kh7 {[%clk 0:01:33.7]} 73. Ke7 {[%clk 0:00:41.9]} 73...
Rf6 {[%clk 0:01:31.4]} 74. Qh5+ {[%clk 0:00:41.9]} 74... Kg8 {[%clk 0:01:30.7]}
75. Qd5+ {[%clk 0:00:41.6]} 75... Kh7 {[%clk 0:01:29.6]} 76. Qh5+ {[%clk
0:00:40.6]} 76... Kg8 {[%clk 0:01:29.7]} 77. Qg5 {[%clk 0:00:34.8]} 77... Kh7
{[%clk 0:01:28.1]} 78. Qg4 {[%clk 0:00:31.8]} 78... Kg8 {[%clk 0:01:15.2]} 79.
Qh5 {[%clk 0:00:30.7]} 79... Rh6 {[%clk 0:01:14.9]} 80. Qf7+ {[%clk 0:00:30.8]}
80... Kh7 {[%clk 0:01:15.2]} 81. Qf5+ {[%clk 0:00:24.1]} 81... Kg8 {[%clk
0:01:14.5]} 82. Ke8 {[%clk 0:00:21.2]} 82... Rf6 {[%clk 0:01:12.3]} 83. Qh5
{[%clk 0:00:20.7]} 83... Rh6 {[%clk 0:01:10.7]} 84. Qf7+ {[%clk 0:00:21]} 84...
Kh7 {[%clk 0:01:10.7]} 85. Qf5+ {[%clk 0:00:21.1]} 85... Kg8 {[%clk 0:01:10]}
86. Qf8+ {[%clk 0:00:21.2]} 86... Kh7 {[%clk 0:01:09.9]} 87. Qf5+ {[%clk
0:00:21.7]} 87... Kg8 {[%clk 0:01:10]} 88. Qf8+ {[%clk 0:00:21.9]} 88... Kh7
{[%clk 0:01:09.9]} 89. Qf5+ {[%clk 0:00:22.1]} 1/2-1/2

[Event "*** Titled Tuesday Blitz"]
[Site "Chess.com"]
[Date "2021.03.02"]
[Round "1"]
[White "pedro_nascimento85"]
[Black "SilviusTiberius"]
[Result "0-1"]
[WhiteElo "2117"]
[BlackElo "2508"]
[TimeControl "180+1"]
[EndTime "10:08:12 PST"]
[Termination "SilviusTiberius won on time"]

1. d4 {[%clk 0:02:59.3]} 1... Nf6 {[%clk 0:02:59.4]} 2. c4 {[%clk 0:02:58.1]}
2... e6 {[%clk 0:02:59.7]} 3. Nc3 {[%clk 0:02:57.1]} 3... d5 {[%clk 0:03:00]} 4.
cxd5 {[%clk 0:02:56.5]} 4... exd5 {[%clk 0:02:59.7]} 5. Bg5 {[%clk 0:02:55.1]}
5... Be7 {[%clk 0:02:59.7]} 6. e3 {[%clk 0:02:55]} 6... h6 {[%clk 0:02:59.3]} 7.
Bh4 {[%clk 0:02:54]} 7... O-O {[%clk 0:02:58.9]} 8. Bd3 {[%clk 0:02:53.3]} 8...
c6 {[%clk 0:02:58.7]} 9. Qc2 {[%clk 0:02:53.7]} 9... Re8 {[%clk 0:02:58.5]} 10.
Nge2 {[%clk 0:02:54]} 10... Nh5 {[%clk 0:02:58.4]} 11. Bxe7 {[%clk 0:02:42.5]}
11... Qxe7 {[%clk 0:02:59.3]} 12. O-O {[%clk 0:02:42.4]} 12... Nd7 {[%clk
0:02:59.2]} 13. Rae1 {[%clk 0:02:35.4]} 13... Nf8 {[%clk 0:02:58.7]} 14. Ng3
{[%clk 0:02:33.9]} 14... Nxg3 {[%clk 0:02:57.4]} 15. hxg3 {[%clk 0:02:30.4]}
15... Qd6 {[%clk 0:02:51.6]} 16. Ne2 {[%clk 0:02:24.7]} 16... a5 {[%clk
0:02:42.3]} 17. a4 {[%clk 0:02:23.4]} 17... Bg4 {[%clk 0:02:35.6]} 18. f3 {[%clk
0:02:20.4]} 18... Bd7 {[%clk 0:02:29.9]} 19. e4 {[%clk 0:02:15.9]} 19... dxe4
{[%clk 0:02:20]} 20. fxe4 {[%clk 0:02:16.8]} 20... Bg4 {[%clk 0:02:17]} 21. e5
{[%clk 0:01:35.7]} 21... Qd7 {[%clk 0:02:04.8]} 22. Qc3 {[%clk 0:01:29.3]} 22...
Ne6 {[%clk 0:01:59]} 23. Bf5 {[%clk 0:01:20.7]} 23... Bxf5 {[%clk 0:01:54.9]}
24. Rxf5 {[%clk 0:01:19.6]} 24... Re7 {[%clk 0:01:37.5]} 25. Ref1 {[%clk
0:01:13.1]} 25... Qd5 {[%clk 0:01:17.1]} 26. Qf3 {[%clk 0:00:53.4]} 26... Nxd4
{[%clk 0:01:09.7]} 27. Nxd4 {[%clk 0:00:50.7]} 27... Qxd4+ {[%clk 0:01:10.6]}
28. Kh1 {[%clk 0:00:51]} 28... Rf8 {[%clk 0:01:01.7]} 29. e6 {[%clk 0:00:44.2]}
29... Rxe6 {[%clk 0:00:56.2]} 30. Rxf7 {[%clk 0:00:43.6]} 30... Rf6 {[%clk
0:00:26.3]} 31. Rxf8+ {[%clk 0:00:31.6]} 31... Kxf8 {[%clk 0:00:27.2]} 32. Qa3+
{[%clk 0:00:29]} 32... c5 {[%clk 0:00:19.8]} 33. Rxf6+ {[%clk 0:00:23.5]} 33...
gxf6 {[%clk 0:00:20.7]} 34. Qb3 {[%clk 0:00:20.4]} 34... Qe4 {[%clk 0:00:17.1]}
35. Qb6 {[%clk 0:00:16.2]} 35... Kg7 {[%clk 0:00:11.5]} 36. Qxc5 {[%clk
0:00:14.7]} 36... Qxa4 {[%clk 0:00:11.8]} 37. Qe7+ {[%clk 0:00:14]} 37... Kg6
{[%clk 0:00:12.1]} 38. Qf8 {[%clk 0:00:13.7]} 38... Qd1+ {[%clk 0:00:11.2]} 39.
Kh2 {[%clk 0:00:13.2]} 39... Qh5+ {[%clk 0:00:11.6]} 40. Kg1 {[%clk 0:00:13]}
40... Qe5 {[%clk 0:00:11.9]} 41. Qg8+ {[%clk 0:00:12.3]} 41... Kf5 {[%clk
0:00:12.2]} 42. Qh7+ {[%clk 0:00:12]} 42... Ke6 {[%clk 0:00:11.9]} 43. Qxb7
{[%clk 0:00:12.5]} 43... Qc5+ {[%clk 0:00:09.9]} 44. Kh2 {[%clk 0:00:12.1]}
44... Qh5+ {[%clk 0:00:10.3]} 45. Kg1 {[%clk 0:00:11.8]} 45... Qd1+ {[%clk
0:00:10.9]} 46. Kh2 {[%clk 0:00:11.7]} 46... Qd5 {[%clk 0:00:11.8]} 47. Qb6+
{[%clk 0:00:10.9]} 47... Ke5 {[%clk 0:00:12.1]} 48. Qe3+ {[%clk 0:00:10.8]}
48... Kd6 {[%clk 0:00:10.2]} 49. Qxh6 {[%clk 0:00:11]} 49... Qg5 {[%clk
0:00:10.3]} 50. Qf8+ {[%clk 0:00:10.3]} 50... Kd5 {[%clk 0:00:09.5]} 51. Qa8+
{[%clk 0:00:10.1]} 51... Kc4 {[%clk 0:00:09.6]} 52. Qa6+ {[%clk 0:00:09.8]}
52... Kb3 {[%clk 0:00:09.3]} 53. Qb6+ {[%clk 0:00:10]} 53... Ka2 {[%clk
0:00:09]} 54. b4 {[%clk 0:00:08.2]} 54... a4 {[%clk 0:00:09]} 55. Qd4 {[%clk
0:00:06.1]} 55... a3 {[%clk 0:00:09.1]} 56. Qc5 {[%clk 0:00:04]} 56... Kb3
{[%clk 0:00:08.9]} 0-1

[Event "*** Titled Tuesday Blitz"]
[Site "Chess.com"]
[Date "2021.03.02"]
[Round "1"]
[White "ehrenfeld"]
[Black "Fawolizzo"]
[Result "1-0"]
[WhiteElo "2509"]
[BlackElo "2134"]
[TimeControl "180+1"]
[EndTime "10:08:16 PST"]
[Termination "ehrenfeld won by resignation"]

1. e4 {[%clk 0:02:59.9]} 1... c5 {[%clk 0:02:59.7]} 2. Nf3 {[%clk 0:02:59.1]}
2... d6 {[%clk 0:03:00]} 3. Bc4 {[%clk 0:02:58.8]} 3... Nf6 {[%clk 0:02:56.3]}
4. d3 {[%clk 0:02:58.6]} 4... e6 {[%clk 0:02:56.3]} 5. Bb3 {[%clk 0:02:57.5]}
5... Be7 {[%clk 0:02:56.4]} 6. O-O {[%clk 0:02:56.4]} 6... O-O {[%clk
0:02:56.6]} 7. c3 {[%clk 0:02:55.4]} 7... b5 {[%clk 0:02:50.2]} 8. Re1 {[%clk
0:02:54.3]} 8... Bb7 {[%clk 0:02:50]} 9. Bc2 {[%clk 0:02:53]} 9... Nbd7 {[%clk
0:02:46.2]} 10. d4 {[%clk 0:02:51.9]} 10... cxd4 {[%clk 0:02:44.4]} 11. cxd4
{[%clk 0:02:51.6]} 11... e5 {[%clk 0:02:44.8]} 12. d5 {[%clk 0:02:46]} 12... Rc8
{[%clk 0:02:44.4]} 13. Nbd2 {[%clk 0:02:28.5]} 13... Qc7 {[%clk 0:02:35.9]} 14.
Bd3 {[%clk 0:02:28.1]} 14... a6 {[%clk 0:02:36]} 15. Nb3 {[%clk 0:02:13.3]}
15... Nc5 {[%clk 0:02:19.6]} 16. Nxc5 {[%clk 0:02:12.8]} 16... Qxc5 {[%clk
0:02:19.6]} 17. Bd2 {[%clk 0:02:07.3]} 17... Ng4 {[%clk 0:02:14.6]} 18. Qe2
{[%clk 0:02:06.4]} 18... g6 {[%clk 0:01:49.6]} 19. Rac1 {[%clk 0:01:55.7]} 19...
Qb6 {[%clk 0:01:46.8]} 20. h3 {[%clk 0:01:54.1]} 20... Nf6 {[%clk 0:01:45.7]}
21. Be3 {[%clk 0:01:48.5]} 21... Qa5 {[%clk 0:01:45.6]} 22. Qd2 {[%clk
0:01:41.8]} 22... Qxa2 {[%clk 0:01:34.9]} 23. Ra1 {[%clk 0:01:37.3]} 23... Qb3
{[%clk 0:01:26.2]} 24. Ra3 {[%clk 0:01:36.6]} 24... Nxe4 {[%clk 0:01:23]} 25.
Bxe4 {[%clk 0:01:23.8]} 25... Qc4 {[%clk 0:01:23]} 26. Bh6 {[%clk 0:01:20.8]}
26... b4 {[%clk 0:01:17.3]} 27. Bxf8 {[%clk 0:01:16.3]} 27... Bxf8 {[%clk
0:01:11.3]} 28. Raa1 {[%clk 0:01:16.1]} 28... f5 {[%clk 0:01:10.8]} 29. Rac1
{[%clk 0:01:16.3]} 29... Qb5 {[%clk 0:01:09.3]} 30. Rxc8 {[%clk 0:01:16]} 30...
Bxc8 {[%clk 0:01:08.7]} 31. Bb1 {[%clk 0:01:12.5]} 31... Bb7 {[%clk 0:01:04.8]}
32. Qe2 {[%clk 0:00:49.9]} 32... Qxd5 {[%clk 0:00:58.1]} 33. Bd3 {[%clk
0:00:48.7]} 33... Qc6 {[%clk 0:00:53.8]} 34. Bc4+ {[%clk 0:00:45.8]} 34... Kh8
{[%clk 0:00:45.6]} 35. Rd1 {[%clk 0:00:40.9]} 35... Qc5 {[%clk 0:00:38.7]} 36.
Qd3 {[%clk 0:00:37.2]} 36... Be7 {[%clk 0:00:23.2]} 37. Ne1 {[%clk 0:00:29.3]}
37... Kg7 {[%clk 0:00:17.1]} 38. Bd5 {[%clk 0:00:29.4]} 38... Bc8 {[%clk
0:00:17.2]} 39. Qc4 {[%clk 0:00:26.4]} 39... Qxc4 {[%clk 0:00:11.4]} 40. Bxc4
{[%clk 0:00:26.2]} 40... a5 {[%clk 0:00:12]} 41. Nc2 {[%clk 0:00:25.9]} 41...
Bb7 {[%clk 0:00:12.2]} 42. Ne3 {[%clk 0:00:25.7]} 42... Bg5 {[%clk 0:00:11.2]}
43. Nd5 {[%clk 0:00:25.3]} 43... Bh6 {[%clk 0:00:09.8]} 44. Ra1 {[%clk
0:00:25.1]} 44... Bg5 {[%clk 0:00:09]} 45. Rxa5 {[%clk 0:00:25]} 45... Kh6
{[%clk 0:00:08.5]} 46. Ra7 {[%clk 0:00:24.1]} 46... Bc6 {[%clk 0:00:09]} 47. Rc7
{[%clk 0:00:23.5]} 47... Ba4 {[%clk 0:00:08.8]} 48. b3 {[%clk 0:00:23.2]} 48...
Be8 {[%clk 0:00:08.6]} 49. Nxb4 {[%clk 0:00:21.7]} 49... Bd2 {[%clk 0:00:08.1]}
50. Nd5 {[%clk 0:00:21.1]} 50... e4 {[%clk 0:00:08.2]} 51. b4 {[%clk 0:00:21]}
51... f4 {[%clk 0:00:08.2]} 52. b5 {[%clk 0:00:19.9]} 52... e3 {[%clk
0:00:08.6]} 53. fxe3 {[%clk 0:00:19.9]} 53... fxe3 {[%clk 0:00:08]} 54. Re7
{[%clk 0:00:19.1]} 54... Bxb5 {[%clk 0:00:06.8]} 55. Bxb5 {[%clk 0:00:18]} 55...
e2 {[%clk 0:00:07]} 56. Bxe2 {[%clk 0:00:17.7]} 1-0